bitfinex/quotes_SOLUSD_20240625
["timestamp","ask_amount","ask_price","bid_price","bid_amount"]
[1719327643695,7.2265,138.38,138.32,7.2295]
[1719327644084,7.227,138.37,138.31,25.3049]
[1719327644405,27.3961,138.39,138.33,7.2289]
[1719327644611,20.17,138.39,138.33,7.2289]
[1719327644790,15.3049,138.41,138.28,22.7682]
[1719327644989,15.3049,138.41,138.3,26.31]
[1719327645190,6.4836,138.42,138.31,20.0]
[1719327645400,6.4836,138.42,138.38,7.2263]
[1719327645802,16.4454,138.45,138.4,7.2251]
[1719327645999,20.0,138.44,138.33,26.31]
[1719327646200,20.0,138.44,138.34,20.34]
[1719327646406,7.224,138.43,138.36,25.295]
[1719327646592,20.0,138.44,138.39,7.2257]
[1719327646910,20.0,138.44,138.39,7.2258]
[1719327647299,6.3178,138.46,138.41,7.2248]
[1719327647605,20.0,138.45,138.4,25.2882]
[1719327647805,7.2237,138.44,138.37,18.0669]
[1719327648006,27.2229,138.45,138.37,18.0669]
[1719327648309,20.0,138.45,138.37,25.2935]
[1719327648486,7.2238,138.44,138.37,25.2935]
[1719327648799,20.0,138.43,138.37,25.2935]
[1719327649208,15.8338,138.41,138.34,18.0705]
[1719327649393,20.0,138.4,138.34,25.2989]
[1719327649779,27.2255,138.4,138.34,25.2989]
[1719327650596,20.0,138.4,138.35,7.2278]
[1719327650802,20.0,138.4,138.34,25.2988]
[1719327650803,27.2255,138.4,138.34,25.2988]
[1719327651204,20.0,138.4,138.35,7.228]
[1719327651385,20.0,138.4,138.36,7.2273]
[1719327651585,20.0,138.4,138.34,18.0705]
[1719327651907,34.75189681,138.4,138.33,7.2286]
[1719327652108,34.75189681,138.4,138.34,7.2284]
[1719327652499,6.2124,138.39,138.29,6.1634]
[1719327652704,7.2281,138.35,138.29,7.2307]
[1719327653022,7.2271,138.37,138.31,7.2301]
[1719327653313,7.3965,138.38,138.32,7.2295]
[1719327653512,20.0,138.37,138.32,7.2295]
[1719327654009,20.0,138.37,138.33,7.229]
[1719327654216,6.2124,138.39,138.28,15.1214]
[1719327654418,6.2124,138.39,138.35,7.2276]
[1719327654790,6.2124,138.39,138.29,20.34]
[1719327655307,7.2265,138.38,138.32,7.2292]
[1719327655647,7.227,138.37,138.31,7.23]
[1719327655799,20.0,138.38,138.29,7.2307]
[1719327656115,7.2276,138.36,138.3,7.2305]
[1719327656493,20.0,138.35,138.3,25.3061]
[1719327656896,20.0,138.35,138.32,7.2292]
[1719327657096,20.0,138.37,138.32,18.0737]
[1719327657296,20.0,138.38,138.32,18.0737]
[1719327657721,27.2266,138.38,138.31,7.2297]
[1719327657895,27.2266,138.38,138.25,21.5599]
[1719327658094,27.2266,138.38,138.31,7.23]
[1719327658312,27.2266,138.38,138.31,25.3051]
[1719327658485,27.2265,138.38,138.32,7.2295]
[1719327658817,27.2265,138.38,138.25,65.0799]
[1719327658818,7.2277,138.36,138.25,21.5599]
[1719327659118,7.228,138.35,138.29,7.231]
[1719327659301,16.1386,138.33,138.28,7.2315]
[1719327659706,16.1386,138.33,138.29,7.2311]
[1719327659902,16.1386,138.33,138.3,7.2305]
[1719327660329,16.1386,138.33,138.29,7.231]
[1719327661222,16.1386,138.33,138.28,25.3097]
[1719327661436,16.1386,138.33,138.28,18.0781]
[1719327661735,16.1386,138.33,138.22,22.3203]
[1719327661929,16.1386,138.33,138.23,20.0]
[1719327662132,16.1386,138.33,138.29,7.231]
[1719327662437,16.1386,138.33,138.28,7.2315]
[1719327662737,16.1386,138.33,138.24,18.0834]
[1719327662738,7.2297,138.32,138.24,18.0834]
[1719327662940,7.2297,138.32,138.25,7.2329]
[1719327663113,7.2297,138.32,138.26,7.2327]
[1719327663319,22.5805,138.33,138.24,18.0834]
[1719327663534,20.0,138.31,138.24,18.0834]
[1719327663839,20.0,138.31,138.26,7.2324]
[1719327664414,29.8097,138.33,138.26,18.0812]
[1719327664627,22.5805,138.33,138.25,0.17]
[1719327664806,391.5267,138.41,138.26,0.17]
[1719327664807,6.0425,138.36,138.26,0.17]
[1719327665121,20.0,138.35,138.3,7.2304]
[1719327665524,27.228,138.35,138.28,7.2315]
[1719327665710,20.0,138.35,138.2,20.0]
[1719327665909,7.2321,138.28,138.2,20.0]
[1719327666105,7.2321,138.28,138.21,18.0872]
[1719327666333,118.0731,138.33,138.21,18.0872]
[1719327666334,7.2325,138.27,138.21,18.0872]
[1719327666531,49.1115,138.27,138.21,18.0872]
[1719327666811,49.1115,138.27,138.21,25.3225]
[1719327667018,41.879,138.27,138.21,25.3225]
[1719327667238,41.879,138.27,138.22,7.2347]
[1719327667614,41.879,138.27,138.23,7.2342]
[1719327667814,41.879,138.27,138.22,7.2347]
[1719327668442,41.879,138.27,138.18,18.092]
[1719327668643,7.2336,138.25,138.18,25.3285]
[1719327668942,7.2344,138.23,138.16,8.0939149]
[1719327669121,7.235,138.22,138.16,0.8561149]
[1719327669316,27.2354,138.21,138.16,0.8561149]
[1719327669749,20.0,138.21,138.16,8.0940149]
[1719327670050,7.2363,138.2,138.16,0.8561149]
[1719327670217,20.0,138.19,138.16,0.8561149]
[1719327672238,21.5291,138.24,138.16,18.9500149]
[1719327672446,7.2352,138.22,138.16,26.1879149]
[1719327672614,20.0,138.21,138.16,0.8561149]
[1719327672813,7.236,138.2,138.16,0.8561149]
[1719327673031,20.0,138.23,138.16,0.8561149]
[1719327673032,20.0,138.19,138.16,0.8561149]
[1719327673211,21.5291,138.24,138.16,0.8561149]
[1719327673428,20.0,138.23,138.16,0.8561149]
[1719327673622,7.2354,138.21,138.16,0.8561149]
[1719327673825,20.0,138.2,138.16,0.8561149]
[1719327674326,7.2373,138.18,138.16,0.8561149]
[1719327674526,20.0,138.17,138.16,0.8561149]
[1719327674739,27.2374,138.17,138.16,0.8561149]
[1719327674914,9.3755,138.16,138.09,9.89e-06]
[1719327675113,7.2399,138.13,138.09,9.89e-06]
[1719327675315,7.239,138.14,138.09,9.89e-06]
[1719327675548,27.5254975,138.15,138.1,7.241]
[1719327675725,27.5254975,138.15,138.09,7.24160989]
[1719327675918,34.7640975,138.15,138.09,9.89e-06]
[1719327676125,0.17,138.14,138.09,9.89e-06]
[1719327676341,27.5254975,138.15,138.09,9.89e-06]
[1719327676535,27.5254975,138.15,138.1,7.241]
[1719327676743,27.5254975,138.15,138.09,7.24150989]
[1719327676945,27.5254975,138.15,138.1,7.2409]
[1719327677247,27.5254975,138.15,138.11,7.2403]
[1719327677438,27.5254975,138.15,138.12,7.2398]
[1719327677749,20.0,138.15,138.11,7.2404]
[1719327678042,20.0,138.15,138.09,9.89e-06]
[1719327678246,0.17,138.14,138.09,9.89e-06]
[1719327678814,7.4091,138.14,138.09,9.89e-06]
[1719327679019,20.0,138.13,138.09,9.89e-06]
[1719327679458,7.5256715,138.17,138.13,7.2394]
[1719327679615,16.0822,138.21,138.1,6.3016]
[1719327679815,36.0822,138.21,138.16,7.2378]
[1719327680021,36.0822,138.21,138.17,7.2373]
[1719327680447,36.0822,138.21,138.16,7.2378]
[1719327680642,36.0822,138.21,138.15,7.2383]
[1719327680818,7.2369,138.18,138.12,23.6799]
[1719327681022,7.2365,138.19,138.12,23.6799]
[1719327681242,16.0822,138.21,138.12,16.44]
[1719327681433,23.3175,138.21,138.14,7.2389]
[1719327681648,16.0822,138.21,138.13,25.3375]
[1719327681938,16.0822,138.21,138.12,7.24]
[1719327682247,16.0822,138.21,138.1,24.4036]
[1719327682248,7.2369,138.18,138.1,24.4036]
[1719327682455,7.2379,138.16,138.1,18.102]
[1719327682657,20.0,138.17,138.12,7.2399]
[1719327682948,16.0822,138.21,138.15,7.2383]
[1719327683247,20.0,138.2,138.15,7.2384]
[1719327683817,20.0,138.2,138.15,8.68562024]
[1719327684020,20.0,138.2,138.14,25.3359]
[1719327684217,20.0,138.2,138.15,1.44722037]
[1719327684843,20.0,138.2,138.14,25.3357]
[1719327685036,20.0,138.2,138.15,7.2383]
[1719327685229,20.0,138.19,138.14,25.3359]
[1719327685433,6.4652,138.24,138.16,18.0944]
[1719327685641,14.76118923,138.23,138.16,18.0944]
[1719327685951,14.76118923,138.23,138.16,25.3322]
[1719327685952,20.0,138.22,138.16,25.3322]
[1719327686446,20.0,138.22,138.15,0.17]
[1719327686650,27.235,138.22,138.15,7.2385]
[1719327686955,27.235,138.22,138.14,0.17]
[1719327686956,20.0,138.22,138.17,7.2371]
[1719327687152,7.2357,138.21,138.15,18.0958]
[1719327687346,20.0,138.22,138.16,7.2378]
[1719327687521,20.0,138.22,138.15,25.3341]
[1719327687726,7.2364,138.19,138.13,6.5244]
[1719327687924,7.2374,138.18,138.12,18.0997]
[1719327688236,7.2375,138.17,138.11,7.2401]
[1719327688437,38.0878,138.22,138.12,7.24]
[1719327688632,7.2365,138.19,138.12,7.24]
[1719327688947,20.0,138.18,138.13,7.2394]
[1719327689253,20.0,138.18,138.11,18.1008]
[1719327689438,20.0,138.18,138.12,7.24]
[1719327689632,20.0,138.18,138.13,7.2394]
[1719327689942,20.0,138.19,138.09,6.11010989]
[1719327690138,20.0,138.2,138.1,20.17]
[1719327690450,20.0,138.2,138.14,7.2389]
[1719327690654,27.2359,138.2,138.14,7.2389]
[1719327690840,27.2359,138.2,138.13,25.3376]
[1719327691036,20.0,138.2,138.14,7.2389]
[1719327691241,20.0,138.2,138.15,7.2383]
[1719327691441,27.2354,138.21,138.12,0.17]
[1719327691629,27.2354,138.21,138.15,7.2381]
[1719327691630,20.0,138.21,138.15,7.2381]
[1719327691969,20.0,138.21,138.16,7.2379]
[1719327692130,14.75874143,138.22,138.11,0.17]
[1719327692131,7.52374143,138.22,138.11,0.17]
[1719327692333,7.2354,138.21,138.14,15.2023]
[1719327692842,13.99054726,138.24,138.15,0.17]
[1719327693038,7.2352,138.22,138.16,18.0946]
[1719327693426,7.2368,138.19,138.13,18.0982]
[1719327693631,20.0,138.21,138.13,18.0982]
[1719327693632,7.236,138.2,138.13,18.0982]
[1719327693859,27.2364,138.19,138.13,25.3375]
[1719327694057,7.2369,138.18,138.13,18.0982]
[1719327694361,27.2365,138.19,138.13,25.3375]
[1719327694537,20.0,138.19,138.13,25.3375]
[1719327694733,20.0,138.19,138.14,7.2389]
[1719327694944,27.2365,138.19,138.13,25.3376]
[1719327695133,20.0,138.19,138.13,25.3376]
[1719327695334,7.235,138.22,138.16,7.2375]
[1719327695546,20.0,138.21,138.15,18.095]
[1719327695947,20.0,138.21,138.16,7.2375]
[1719327696234,20.0,138.22,138.17,18.0924]
[1719327696452,20.0,138.23,138.17,18.0924]
[1719327696731,20.0,138.23,138.18,7.2368]
[1719327696973,20.0,138.23,138.17,25.3297]
[1719327697144,27.2343,138.23,138.17,25.3297]
[1719327697339,20.0,138.23,138.17,18.0924]
[1719327698156,27.2343,138.23,138.17,25.3298]
[1719327698455,27.2343,138.23,138.17,25.3297]
[1719327698842,7.2348,138.22,138.17,18.0924]
[1719327699071,7.2353,138.21,138.15,7.2383]
[1719327699370,7.2353,138.21,138.14,18.0966]
[1719327699371,7.235,138.22,138.16,7.2379]
[1719327699671,20.0,138.21,138.16,7.2379]
[1719327700248,16.2165,138.2,138.1,15.2023]
[1719327700445,27.4065,138.19,138.12,7.2399]
[1719327700695,20.0,138.19,138.13,7.2394]
[1719327701173,20.0,138.19,138.11,25.3412]
[1719327701361,7.237,138.18,138.11,25.3412]
[1719327701556,20.0,138.17,138.12,7.2399]
[1719327701764,20.0,138.17,138.11,25.3416]
[1719327702075,20.0,138.17,138.11,18.1011]
[1719327702263,16.2165,138.2,138.15,7.2383]
[1719327702472,20.0,138.19,138.15,7.2383]
[1719327702653,20.0,138.19,138.09,9.89e-06]
[1719327702654,6.1115,138.22,138.17,7.2372]
[1719327702854,20.0,138.21,138.18,7.2369]
[1719327703373,6.1115,138.22,138.13,6.5093]
[1719327703576,6.1115,138.22,138.14,0.17]
[1719327703872,13.3464,138.22,138.15,7.2384]
[1719327704171,13.3464,138.22,138.13,7.2392]
[1719327704172,7.2364,138.19,138.13,7.2392]
[1719327704377,6.1115,138.22,138.13,7.2392]
[1719327704378,7.2359,138.2,138.13,7.2392]
[1719327704583,20.0,138.19,138.13,7.2392]
[1719327705375,27.2365,138.19,138.12,25.3399]
[1719327705676,7.2365,138.19,138.13,7.2395]
[1719327705858,20.0,138.18,138.13,7.2395]
[1719327706058,20.0,138.18,138.14,7.2388]
[1719327706377,20.0,138.19,138.14,7.2388]
[1719327706584,20.0,138.19,138.13,7.2394]
[1719327707470,20.0,138.19,138.14,7.2389]
[1719327707671,20.0,138.21,138.09,24.16500989]
[1719327707881,22.5614,138.17,138.1,7.2409]
[1719327708083,20.0,138.16,138.1,7.2409]
[1719327708288,27.2381,138.16,138.09,25.34500989]
[1719327708648,27.2381,138.16,138.1,7.241]
[1719327708854,20.0,138.16,138.11,7.2405]
[1719327709270,27.238,138.16,138.1,7.2409]
[1719327709583,20.0,138.16,138.11,7.2406]
[1719327711279,20.0,138.16,138.09,18.10350989]
[1719327711477,20.0,138.16,138.12,7.2399]
[1719327711682,20.0,138.16,138.11,25.341]
[1719327712065,20.0,138.16,138.12,7.2399]
[1719327712376,20.0,138.16,138.11,18.1006]
[1719327712989,20.0,138.16,138.11,25.341]
[1719327713677,27.2381,138.16,138.11,18.1006]
[1719327713884,7.2389,138.15,138.09,9.89e-06]
[1719327714085,26.4826,138.16,138.09,9.89e-06]
[1719327714086,27.2392,138.14,138.09,9.89e-06]
[1719327714277,26.4826,138.16,138.1,7.2407]
[1719327714887,33.7206,138.16,138.1,7.2407]
[1719327715156,26.4826,138.16,138.09,9.89e-06]
[1719327715381,26.4826,138.16,138.11,7.2405]
[1719327715786,33.7206,138.16,138.1,25.3434]
[1719327716958,33.7206,138.16,138.1,25.3433]
[1719327717567,26.4826,138.16,138.1,25.3433]
[1719327718089,26.4826,138.16,138.11,7.2405]
[1719327718475,34.01150341,138.16,138.11,7.2405]
[1719327718677,34.01150341,138.16,138.1,25.3433]
[1719327719387,41.24970341,138.16,138.1,25.3433]
[1719327720572,27.52890341,138.16,138.1,18.1024]
[1719327720768,27.52890341,138.16,138.11,7.2404]
[1719327721281,27.52890341,138.16,138.1,25.3433]
[1719327721479,34.76700341,138.16,138.1,25.3433]
[1719327722063,27.52890341,138.16,138.11,7.2404]
[1719327722384,7.52890341,138.16,138.12,7.2396]
[1719327722595,100.0,138.22,138.09,9.89e-06]
[1719327722596,15.1113,138.21,138.15,7.2385]
[1719327722762,20.0,138.2,138.15,7.2385]
[1719327722958,20.0,138.2,138.14,18.0971]
[1719327723169,20.0,138.2,138.11,15.3687]
[1719327723170,7.2365,138.19,138.13,7.2392]
[1719327723562,27.2361,138.2,138.13,7.2392]
[1719327723769,7.2369,138.18,138.12,7.24]
[1719327724095,6.4088,138.19,138.09,9.89e-06]
[1719327724277,20.34,138.18,138.09,9.89e-06]
[1719327724966,15.0494,138.17,138.09,9.89e-06]
[1719327725175,7.408,138.16,138.1,7.241]
[1719327725367,20.0,138.15,138.09,18.10380989]
[1719327725561,20.0,138.15,138.11,7.2402]
[1719327726083,6.4088,138.19,138.09,9.89e-06]
[1719327726264,6.4088,138.19,138.14,7.2388]
[1719327726464,6.4088,138.19,138.13,25.3375]
[1719327727159,6.4088,138.19,138.14,7.2389]
[1719327727362,20.0,138.18,138.14,7.2389]
[1719327727595,20.0,138.18,138.13,25.3377]
[1719327728985,20.0,138.18,138.13,18.0982]
[1719327729489,20.0,138.18,138.13,25.3376]
[1719327730062,20.0,138.18,138.13,18.0982]
[1719327730787,6.4088,138.19,138.13,18.0982]
[1719327730974,16.6038,138.2,138.15,18.0959]
[1719327731297,20.0,138.19,138.15,25.3342]
[1719327731666,20.0,138.19,138.16,7.2379]
[1719327732197,20.0,138.19,138.09,7.24140989]
[1719327732405,0.17,138.18,138.1,7.2408]
[1719327732569,27.2369,138.19,138.12,7.2398]
[1719327732891,7.2369,138.18,138.09,9.89e-06]
[1719327733208,20.0,138.17,138.11,18.1002]
[1719327733378,14.76028057,138.18,138.12,7.2397]
[1719327733581,20.0,138.17,138.12,7.2397]
[1719327735013,20.0,138.17,138.13,7.2394]
[1719327735503,20.0,138.17,138.14,7.2389]
[1719327735874,20.0,138.19,138.14,7.2388]
[1719327736074,27.2364,138.19,138.13,18.0985]
[1719327736483,0.17,138.18,138.09,9.89e-06]
[1719327736685,7.2376,138.17,138.1,25.343]
[1719327736912,20.0,138.16,138.1,25.343]
[1719327737289,27.238,138.16,138.1,18.1023]
[1719327737486,20.0,138.16,138.1,18.1023]
[1719327738605,27.2381,138.16,138.1,18.1023]
[1719327739199,20.0,138.16,138.1,18.1023]
[1719327739400,20.0,138.16,138.11,7.2401]
[1719327740311,20.0,138.16,138.11,7.2404]
[1719327740613,6.3922,138.17,138.11,7.2404]
[1719327740786,20.0,138.16,138.11,7.2404]
[1719327741116,20.0,138.16,138.12,7.24]
[1719327741606,20.0,138.17,138.13,7.2395]
[1719327741817,20.0,138.19,138.13,7.2395]
[1719327741998,27.2364,138.19,138.12,25.3397]
[1719327743788,7.2371,138.18,138.12,18.0999]
[1719327743991,20.17,138.17,138.11,7.2405]
[1719327744209,7.4077,138.17,138.11,7.2405]
[1719327744512,20.0,138.16,138.11,7.2405]
[1719327744812,20.0,138.16,138.1,7.2409]
[1719327745743,20.0,138.16,138.09,18.10370989]
[1719327745744,20.0,138.16,138.11,7.2404]
[1719327746020,20.0,138.16,138.12,7.24]
[1719327746189,20.0,138.17,138.13,7.2394]
[1719327746508,7.51512011,138.17,138.12,7.2399]
[1719327746713,20.0,138.16,138.12,7.2399]
[1719327747820,20.0,138.16,138.13,18.098]
[1719327747981,20.0,138.16,138.13,25.3372]
[1719327748183,20.0,138.16,138.13,18.098]
[1719327748487,20.0,138.16,138.1,18.1016]
[1719327748688,20.0,138.16,138.11,7.2404]
[1719327752794,20.0,138.16,138.09,9.89e-06]
[1719327753096,7.4088,138.15,138.09,7.24130989]
[1719327753304,20.0,138.14,138.09,7.24130989]
[1719327753517,20.0,138.14,138.09,25.34530989]
[1719327754005,27.4085,138.15,138.09,25.34530989]
[1719327754394,20.0,138.15,138.09,18.10400989]
[1719327754615,20.0,138.16,138.09,18.10400989]
[1719327755295,20.0,138.16,138.11,7.2402]
[1719327756426,20.0,138.16,138.09,9.89e-06]
[1719327756610,16.36479338,138.18,138.13,8.82]
[1719327756805,20.0,138.17,138.12,8.82]
[1719327757005,36.0575,138.17,138.12,8.82]
[1719327757320,28.82,138.17,138.12,16.06]
[1719327757526,28.82,138.17,138.13,7.2394]
[1719327757712,28.82,138.17,138.13,16.0594]
[1719327757915,28.82,138.17,138.12,8.82]
[1719327758104,7.2384,138.16,138.09,7.24140989]
[1719327758307,28.82,138.15,138.1,8.82]
[1719327758822,20.0,138.15,138.1,7.241]
[1719327759502,20.0,138.17,138.11,7.2404]
[1719327759707,27.2376,138.17,138.11,7.2404]
[1719327760101,27.2376,138.17,138.1,7.2409]
[1719327760307,27.2376,138.17,138.11,7.2405]
[1719327761513,27.2376,138.17,138.11,7.2404]
[1719327761719,20.0,138.17,138.12,7.24]
[1719327761928,27.2375,138.17,138.11,25.3416]
[1719327762405,20.0,138.17,138.13,18.0984]
[1719327762610,20.0,138.17,138.13,25.3375]
[1719327762814,7.54373873,138.19,138.14,7.2389]
[1719327763117,7.54373873,138.19,138.14,7.2388]
[1719327764225,20.0,138.18,138.14,7.2388]
[1719327765316,27.2369,138.18,138.13,18.0984]
[1719327765618,20.0,138.18,138.13,18.0984]
[1719327766838,20.0,138.18,138.13,25.3376]
[1719327767020,20.0,138.18,138.1,7.2406]
[1719327767226,20.0,138.18,138.11,7.2404]
[1719327767534,0.17,138.17,138.11,7.2404]
[1719327767932,7.4075,138.17,138.11,7.2404]
[1719327768135,20.0,138.16,138.11,7.2404]
[1719327768315,20.0,138.16,138.12,7.24]
[1719327768717,20.17,138.17,138.12,7.24]
[1719327769230,20.17,138.17,138.11,7.2404]
[1719327770224,20.17,138.17,138.12,7.2399]
[1719327770916,20.17,138.17,138.11,7.2403]
[1719327771335,20.17,138.17,138.1,25.3435]
[1719327771525,7.4076,138.17,138.1,25.3435]
[1719327771721,20.0,138.16,138.1,18.1026]
[1719327771913,0.17,138.17,138.12,7.2398]
[1719327772109,0.17,138.17,138.11,7.2403]
[1719327772644,0.17,138.17,138.12,7.2399]
[1719327773137,0.17,138.17,138.11,7.2403]
[1719327773340,7.72019746,138.17,138.11,7.2403]
[1719327773522,20.0,138.16,138.11,7.2403]
[1719327773714,20.0,138.16,138.12,7.24]
[1719327774622,20.0,138.16,138.09,9.89e-06]
[1719327774823,20.0,138.16,138.14,18.0975]
[1719327775133,20.0,138.16,138.09,9.89e-06]
[1719327775520,20.0,138.16,138.11,7.2402]
[1719327778321,20.0,138.16,138.12,7.24]
[1719327779442,7.55019746,138.17,138.09,9.89e-06]
[1719327779650,16.6038,138.2,138.16,18.0947]
[1719327779957,20.0,138.19,138.16,25.3325]
[1719327780126,20.0,138.19,138.16,18.0947]
[1719327780322,20.0,138.19,138.13,18.0978]
[1719327780722,20.0,138.19,138.15,26.9059]
[1719327780930,28.81,138.19,138.15,18.0959]
[1719327781244,7.55021043,138.21,138.17,8.81]
[1719327781446,7.55021043,138.21,138.15,16.0483]
[1719327781447,20.0,138.2,138.15,16.0483]
[1719327781646,28.81,138.2,138.16,7.2378]
[1719327781848,20.0,138.2,138.15,8.81]
[1719327782044,20.0,138.2,138.17,16.0474]
[1719327782241,7.55021043,138.21,138.18,7.2368]
[1719327782429,15.991,138.25,138.2,8.81]
[1719327782625,15.991,138.25,138.21,8.81]
[1719327782828,23.54074182,138.25,138.21,8.81]
[1719327783282,23.54074182,138.25,138.19,7.2363]
[1719327783443,23.54074182,138.25,138.21,8.81]
[1719327783960,20.0,138.24,138.21,8.81]
[1719327784324,20.0,138.24,138.23,8.81]
[1719327784741,7.54974182,138.25,138.22,7.2348]
[1719327785341,7.54974182,138.25,138.21,7.2352]
[1719327785551,7.54974182,138.25,138.22,7.2346]
[1719327785740,7.54974182,138.25,138.17,6.487]
[1719327785741,7.54974182,138.25,138.24,7.2337]
[1719327785954,29.5985,138.34,138.22,15.4609]
[1719327786259,30.28287367,138.34,138.23,20.91012041]
[1719327786550,30.28287367,138.34,138.24,26.41]
[1719327786551,27.55490629,138.33,138.24,26.41]
[1719327786740,27.55490629,138.33,138.27,7.2321]
[1719327786954,27.55490629,138.33,138.25,0.17]
[1719327787129,7.55490629,138.33,138.27,26.41]
[1719327787328,13.96787367,138.37,138.31,25.3047]
[1719327787529,21.51593182,138.37,138.31,18.0748]
[1719327787760,28.74303182,138.37,138.31,18.0748]
[1719327788264,28.74303182,138.37,138.31,25.3048]
[1719327788756,20.0,138.36,138.31,25.3048]
[1719327788953,20.0,138.36,138.3,7.2305]
[1719327789139,27.91307367,138.36,138.24,33.0699]
[1719327789333,7.2289,138.34,138.27,18.0797]
[1719327789535,20.0,138.33,138.27,18.0797]
[1719327789760,27.2278,138.36,138.27,18.0797]
[1719327790064,13.60285815,138.37,138.28,0.17]
[1719327790352,13.60285815,138.37,138.33,7.2289]
[1719327790565,13.60285815,138.37,138.32,7.2295]
[1719327791160,16.6163,138.38,138.28,20.34]
[1719327791161,16.6163,138.38,138.34,7.2285]
[1719327791331,16.6163,138.38,138.33,7.229]
[1719327791530,16.6163,138.38,138.29,16.3638]
[1719327791747,7.2289,138.34,138.26,7.2322]
[1719327792059,20.0,138.33,138.28,7.2315]
[1719327792559,7.2301,138.31,138.24,18.0838]
[1719327792860,20.0,138.3,138.26,7.2327]
[1719327793046,20.0,138.3,138.28,7.2316]
[1719327793243,0.17,138.35,138.23,26.41]
[1719327793462,0.34,138.35,138.29,7.2311]
[1719327793772,27.5681,138.35,138.28,25.3102]
[1719327793942,20.0,138.35,138.28,18.0787]
[1719327794133,7.3985,138.34,138.27,7.2322]
[1719327794341,20.0,138.33,138.28,7.2316]
[1719327794531,7.2302,138.31,138.24,7.2336]
[1719327794946,20.0,138.3,138.24,7.2336]
[1719327795460,20.0,138.3,138.27,7.2318]
[1719327795762,20.0,138.32,138.27,7.2318]
[1719327796142,27.2298,138.32,138.26,18.0814]
[1719327796467,27.2298,138.32,138.2,6.6248]
[1719327796468,7.2312,138.29,138.2,6.6248]
[1719327796651,23.6973,138.3,138.23,25.3193]
[1719327796840,20.17,138.29,138.23,25.3193]
[1719327797040,27.4013,138.29,138.23,18.0851]
[1719327797447,27.4013,138.29,138.23,25.3193]
[1719327797657,27.4013,138.29,138.23,18.0851]
[1719327798544,13.522,138.28,138.21,7.2351]
[1719327798756,7.4023,138.27,138.21,7.2351]
[1719327798938,20.0,138.26,138.22,7.2347]
[1719327799138,20.0,138.26,138.23,7.2343]
[1719327799478,16.4665,138.3,138.25,7.2328]
[1719327799648,16.4665,138.3,138.25,7.2332]
[1719327799848,16.4665,138.3,138.26,7.2326]
[1719327800157,16.4665,138.3,138.21,22.8575]
[1719327800158,7.2318,138.28,138.22,7.2347]
[1719327800341,7.2318,138.28,138.21,25.323]
[1719327800856,7.2318,138.28,138.22,7.2346]
[1719327801047,0.17,138.29,138.21,18.0877]
[1719327801257,26.25689785,138.3,138.2,0.17]
[1719327801456,20.0,138.29,138.21,26.41]
[1719327801664,16.4665,138.3,138.26,7.2326]
[1719327801962,24.01625835,138.3,138.22,0.17]
[1719327802139,6.2902,138.32,138.27,7.2321]
[1719327802336,16.353,138.33,138.29,7.2311]
[1719327802558,7.54919826,138.32,138.29,7.2311]
[1719327803365,16.353,138.33,138.28,7.2315]